bitfinex/quotes_ETHUSD_20260226
["timestamp","ask_amount","ask_price","bid_price","bid_amount"]
[1772121340871,1.17645029,2034.6,2033.7,0.0011]
[1772121341057,1.17645029,2034.3,2033.4,0.0011]
[1772121341263,1.17645029,2034.3,2033.4,1.23055651]
[1772121341784,1.22898436,2034.2,2033.4,0.0011]
[1772121341992,1.22886223,2034.5,2033.5,2.13030879]
[1772121342347,1.22886223,2034.5,2033.5,3.04030879]
[1772121343075,1.17645029,2034.4,2033.4,0.0011]
[1772121343290,2.37445029,2034.4,2033.4,2.13140879]
[1772121343991,2.37445029,2034.4,2034.3,0.0011]
[1772121344286,3.60331383,2034.4,2034.0,0.0011]
[1772121344529,1.17645029,2034.7,2034.0,2.13140879]
[1772121344787,1.22861111,2034.9,2034.0,2.13140879]
[1772121344788,1.2285616,2034.9,2034.0,2.13140879]
[1772121345159,2.40501189,2034.9,2034.0,2.13140879]
[1772121346080,1.22868236,2034.7,2034.1,1.22904478]
[1772121346277,1.17645029,2034.6,2034.0,0.0011]
[1772121346471,1.17645029,2034.6,2034.0,1.23019207]
[1772121346881,1.22863617,2034.8,2034.0,1.23019207]
[1772121347080,2.40508646,2034.8,2034.0,1.23019207]
[1772121347887,1.17645029,2034.7,2034.0,1.23019207]
[1772121348091,2.40519304,2034.6,2034.0,0.0011]
[1772121348596,1.17645029,2034.5,2034.0,0.0011]
[1772121348907,2.37445029,2034.5,2034.0,0.0011]
[1772121349070,1.198,2034.5,2034.0,0.0011]
[1772121349268,1.17645029,2034.8,2034.0,0.0011]
[1772121349521,2.13030879,2035.8,2034.2,2.13030879]
[1772121349522,2.40589312,2035.1,2034.2,2.13030879]
[1772121349802,2.40589312,2035.1,2034.2,4.93932]
[1772121350498,1.17645029,2035.0,2034.2,1.22894147]
[1772121350707,1.17645029,2035.0,2034.1,1.22899992]
[1772121350866,0.001,2035.1,2034.3,2.13030879]
[1772121351073,1.17745029,2035.1,2034.1,1.22899992]
[1772121351274,1.17745029,2035.1,2034.2,2.52842]
[1772121351485,1.17745029,2035.1,2034.1,1.22899992]
[1772121351888,1.17745029,2035.1,2034.2,5.759558]
[1772121352069,0.001,2035.1,2034.2,5.759558]
[1772121352275,2.40465245,2035.5,2034.6,1.22874275]
[1772121352567,2.40465482,2035.5,2034.6,1.22874275]
[1772121352968,1.17645029,2035.4,2034.6,1.22874275]
[1772121353365,1.17645029,2035.4,2034.4,2.079628]
[1772121353568,1.17645029,2035.4,2034.3,0.909]
[1772121353801,1.17645029,2035.2,2034.0,1.23015835]
[1772121353969,1.17645029,2035.0,2034.0,1.23015835]
[1772121354591,2.40501189,2034.9,2034.0,1.23015835]
[1772121355176,1.17645029,2034.8,2034.0,1.23015835]
[1772121355470,1.17645029,2034.8,2034.0,0.0011]
[1772121356592,1.17645029,2034.6,2034.0,0.0011]
[1772121356929,2.37145029,2034.6,2034.2,0.0011]
[1772121357243,0.001,2034.6,2034.2,0.0011]
[1772121360231,1.17645029,2034.5,2034.2,0.0011]
[1772121360444,1.22974275,2034.6,2034.2,0.0011]
[1772121360445,0.001,2034.6,2034.2,0.0011]
[1772121361308,6.0897681,2035.3,2034.6,1.52377796]
[1772121361494,1.17645029,2035.2,2034.2,2.16996685]
[1772121361702,1.17645029,2035.0,2034.2,0.0011]
[1772121362018,1.195,2035.1,2034.3,5.58455796]
[1772121362330,3.59989416,2035.1,2034.4,1.22886354]
[1772121362537,1.17645029,2035.0,2034.2,0.0011]
[1772121362706,1.17645029,2035.0,2034.2,1.2300825]
[1772121363031,1.17645029,2035.0,2034.2,0.0011]
[1772121363533,1.17645029,2035.0,2034.2,1.23008296]
[1772121364123,1.17645029,2035.0,2034.2,0.0011]
[1772121364322,1.17645029,2034.8,2034.0,0.0011]
[1772121364845,1.2285616,2034.9,2034.0,0.0011]
[1772121364846,1.17590029,2034.6,2034.0,0.0011]
[1772121365035,1.17590029,2034.4,2034.0,0.0011]
[1772121365732,1.17590029,2034.4,2033.8,0.0011]
[1772121366835,1.17590029,2034.2,2033.8,0.0011]
[1772121367131,1.22889053,2034.4,2033.8,0.0011]
[1772121367430,1.17590029,2034.3,2033.8,0.0011]
[1772121368238,1.17590029,2034.3,2033.4,0.0011]
[1772121369031,1.17590029,2034.1,2033.4,0.0011]
[1772121369226,7.63320536,2034.5,2033.4,0.0011]
[1772121369227,2.36990029,2034.5,2033.5,1.52377796]
[1772121369398,3.59872069,2034.5,2033.7,1.52377796]
[1772121369719,0.001,2034.8,2034.1,1.52377796]
[1772121370330,1.22962482,2034.8,2034.1,1.52377796]
[1772121370634,2.40552511,2034.8,2033.8,0.0011]
[1772121370799,2.40552511,2034.8,2033.9,1.52377796]
[1772121370997,1.17690029,2034.8,2034.2,1.22898436]
[1772121371200,1.22963624,2034.8,2034.2,1.22898436]
[1772121371827,0.001,2034.8,2034.2,1.22898436]
[1772121372610,1.17590029,2034.7,2033.8,4.91797115]
[1772121372811,1.17590029,2034.7,2033.9,1.22916564]
[1772121373611,1.22874275,2034.6,2033.9,1.22916564]
[1772121373839,6.09087129,2034.7,2033.9,1.22916564]
[1772121373840,1.17590029,2034.7,2033.9,1.22916564]
[1772121374142,1.17590029,2034.7,2034.0,1.52377796]
[1772121374334,1.17590029,2034.7,2033.9,1.22916564]
[1772121374335,2.40458795,2034.7,2033.9,1.22916564]
[1772121375034,2.40459231,2034.7,2034.0,1.52377796]
[1772121375336,1.17590029,2034.7,2034.0,1.52377796]
[1772121375641,0.001,2034.8,2034.2,1.52377796]
[1772121376010,0.001,2034.8,2034.1,1.22904478]
[1772121376011,2.40552969,2034.8,2034.1,1.22904478]
[1772121376211,1.17690029,2034.8,2034.1,1.22904478]
[1772121376432,2.40552422,2034.8,2034.1,1.22904478]
[1772121377246,1.17690029,2034.8,2034.1,1.22904478]
[1772121377934,2.40552422,2034.8,2034.1,1.22904478]
[1772121379139,1.17590029,2034.7,2034.1,1.22904478]
[1772121379436,1.17590029,2034.7,2034.0,2.1330754]
[1772121379636,1.17590029,2034.7,2033.9,1.22914279]
[1772121379841,1.17590029,2034.5,2033.8,0.0011]
[1772121380812,1.17590029,2034.4,2033.8,0.0011]
[1772121381013,1.17590029,2034.2,2033.5,0.0011]
[1772121381318,1.17535029,2034.1,2033.5,0.0011]
[1772121381847,1.17535029,2034.1,2033.5,2.75424974]
[1772121382911,2.40439649,2034.1,2033.5,2.75424974]
[1772121383109,2.40439649,2034.1,2033.5,0.0011]
[1772121383346,1.17535029,2034.0,2033.7,0.0011]
[1772121383646,1.17535029,2034.0,2033.5,0.0011]
[1772121384150,1.17535029,2033.8,2033.5,0.0011]
[1772121386046,2.40460772,2033.8,2033.5,0.0011]
[1772121387510,1.17535029,2033.7,2032.8,4.91915227]
[1772121387746,1.17535029,2033.7,2032.7,0.904]
[1772121388448,1.22922607,2033.8,2032.8,2.75360873]
[1772121389045,2.40402636,2033.8,2032.9,3.018982]
[1772121389246,1.17480029,2033.7,2032.9,3.018982]
[1772121389425,1.17480029,2033.5,2032.7,1.229841]
[1772121389621,1.17480029,2033.5,2032.5,5.8240176]
[1772121389622,1.17480029,2033.3,2032.5,2.1340084]
[1772121390021,1.17480029,2033.3,2032.5,1.2300084]
[1772121390623,6.11468315,2033.5,2032.5,2.75378636]
[1772121390624,1.197,2033.5,2032.5,2.75378636]
[1772121391141,2.4264135,2033.5,2032.7,1.52377796]
[1772121391351,2.42640888,2033.5,2032.5,2.75378636]
[1772121391662,3.60124088,2033.5,2032.5,1.2300084]
[1772121392849,1.17480029,2033.4,2032.5,1.2300084]
[1772121394520,1.197,2033.5,2032.6,1.52377796]
[1772121394850,2.42640785,2033.5,2032.6,1.52377796]
[1772121395044,1.197,2033.5,2032.7,1.23099127]
[1772121395246,2.4264157,2033.5,2032.7,1.23099127]
[1772121395465,1.195,2033.8,2032.9,1.52377796]
[1772121395631,1.17480029,2034.0,2033.1,1.52377796]
[1772121395954,3.59874612,2034.3,2033.3,1.52377796]
[1772121396263,1.17480029,2034.2,2033.3,0.904]
[1772121396563,1.17480029,2034.0,2033.3,0.904]
[1772121396718,1.17480029,2034.0,2032.7,1.23099127]
[1772121396918,1.17480029,2033.6,2032.7,0.9041]
[1772121399351,1.22940742,2033.5,2032.8,1.22983077]
[1772121400534,1.17480029,2033.4,2032.7,2.13394288]
[1772121401254,1.17480029,2033.4,2032.7,1.23094288]
[1772121401465,1.17480029,2033.2,2032.7,0.0011]
[1772121401660,1.52377796,2033.2,2032.7,0.0011]
[1772121401951,1.17480029,2033.1,2032.7,0.0011]
[1772121403021,1.194,2033.2,2032.7,0.0011]
[1772121403351,2.42438047,2033.6,2032.7,0.0011]
[1772121403525,3.59918076,2033.6,2032.7,0.0011]
[1772121403722,1.17480029,2033.5,2032.7,0.0011]
[1772121405848,1.17480029,2033.3,2032.7,0.0011]
[1772121406055,1.22931725,2033.7,2032.8,1.52377796]
[1772121406346,1.17480029,2033.3,2032.7,0.0011]
[1772121406855,1.17580029,2033.3,2032.7,0.0011]
[1772121408053,2.40438911,2033.2,2032.7,0.0011]
[1772121409056,1.17480029,2033.1,2032.7,0.0011]
[1772121410663,2.4044576,2033.1,2032.7,0.0011]
[1772121410838,0.001,2033.3,2032.7,0.0011]
[1772121412035,1.23053193,2033.3,2032.7,0.0011]
[1772121412235,0.001,2033.3,2032.7,0.0011]
[1772121413768,2.4042565,2033.5,2032.7,0.0011]
[1772121413769,1.17480029,2033.9,2033.0,1.52377796]
[1772121413937,2.40397722,2033.9,2033.0,1.52377796]
[1772121414136,2.40397722,2033.9,2032.7,2.42587796]
[1772121414332,1.17480029,2033.8,2032.7,2.42587796]
[1772121414533,2.40408681,2033.7,2032.8,1.22983077]
[1772121414863,1.17480029,2033.7,2032.8,1.22983077]
[1772121415376,1.52377796,2034.1,2032.8,2.75360873]
[1772121415377,1.17480029,2034.0,2032.8,2.75360873]
[1772121415535,2.42299765,2034.2,2033.1,1.52377796]
[1772121415860,2.40366254,2034.5,2033.3,1.52377796]
[1772121416064,1.17480029,2034.4,2033.3,1.52377796]
[1772121416662,1.17480029,2034.2,2033.4,1.22946788]
[1772121416839,1.17480029,2034.1,2033.2,2.12954251]
[1772121418756,1.17480029,2033.9,2033.2,2.12954251]
[1772121419161,1.17480029,2033.9,2033.2,1.22954251]
[1772121420567,0.9490614,2033.1,2032.2,0.0011]
[1772121420747,0.9490614,2032.8,2032.2,0.0011]
[1772121420947,0.0022,2032.1,2031.4,0.797]
[1772121421133,0.97343426,2032.3,2031.5,0.0011]
[1772121421338,2.42270978,2033.0,2031.6,0.14323772]
[1772121421339,0.97343426,2032.6,2031.6,0.14323772]
[1772121421544,2.894642,2032.4,2031.6,0.14323772]
[1772121421747,0.97343426,2032.9,2031.8,2.13579437]
[1772121422070,0.97343426,2032.9,2031.9,1.05870251]
[1772121422374,1.22969483,2033.1,2032.1,2.29449688]
[1772121422577,2.894642,2033.1,2032.2,0.15870251]
[1772121422741,1.22969501,2033.1,2032.3,1.23013334]
[1772121423574,1.22969501,2033.1,2032.4,0.899]
[1772121424084,2.20306834,2033.2,2032.4,0.899]
[1772121424258,5.09771034,2033.2,2032.5,0.0011]
[1772121424611,2.20288711,2033.5,2032.6,8.075429]
[1772121424755,2.20288711,2033.5,2032.7,1.22989127]
[1772121424952,2.894642,2033.4,2032.7,1.23099127]
[1772121425162,0.97343426,2033.3,2032.7,0.0011]
[1772121425373,2.894642,2033.1,2032.7,0.0011]
[1772121425853,3.86807626,2033.0,2032.1,2.55570147]
[1772121426162,2.894642,2032.8,2032.2,0.899]
[1772121426559,2.894642,2032.9,2032.2,0.899]
[1772121426750,4.12444976,2032.9,2032.3,1.23123334]
[1772121427076,1.22980776,2032.9,2032.3,0.0011]
[1772121427385,2.894642,2032.8,2032.3,0.0011]
[1772121427571,2.894642,2032.7,2032.3,0.0011]
[1772121427757,2.894642,2032.6,2032.2,0.899]
[1772121427962,3.86807626,2032.7,2032.2,0.9001]
[1772121428386,1.22980776,2032.9,2032.2,2.1302842]
[1772121428549,2.20324202,2032.9,2032.2,0.9001]
[1772121428749,2.894642,2032.8,2032.2,0.9001]
[1772121429055,1.22989127,2032.7,2032.2,0.9001]
[1772121429281,1.22986981,2032.8,2032.2,0.9001]
[1772121429469,1.01066766,2032.6,2032.2,0.9001]
[1772121430191,1.01066766,2032.6,2032.2,0.899]
[1772121430907,1.01066766,2032.4,2031.3,0.13248087]
[1772121431107,1.01066766,2032.4,2031.4,0.0011]
[1772121431308,1.01066766,2032.1,2031.4,0.0011]
[1772121431806,1.01066766,2031.8,2031.4,0.0011]
[1772121433012,1.01066766,2031.6,2030.6,1.2311219]
[1772121433182,1.01066766,2031.6,2030.7,3.501251]
[1772121433383,2.894642,2031.5,2030.6,2.1291219]
[1772121433580,3.90530966,2031.3,2030.6,0.898]
[1772121433787,1.01066766,2031.0,2030.6,0.898]
[1772121434084,1.01066766,2031.0,2030.3,0.0011]
[1772121434489,1.01066766,2030.9,2030.3,0.0011]
[1772121434688,2.894642,2030.8,2030.3,0.0011]
[1772121434890,1.23110257,2030.7,2030.3,0.0011]
[1772121435278,1.2309822,2030.9,2030.3,0.0011]
[1772121435486,1.2309822,2030.9,2030.4,0.898]
[1772121435487,2.894642,2030.9,2030.4,0.898]
[1772121436109,2.894642,2030.9,2030.3,0.0011]
[1772121436310,1.2309061,2031.1,2030.3,0.0011]
[1772121436311,3.90530966,2030.8,2030.3,0.0011]
[1772121436493,1.01066766,2030.6,2030.3,0.0011]
[1772121436686,1.01066766,2030.9,2030.3,0.0011]
[1772121436882,2.894642,2030.8,2030.3,0.0011]
[1772121437088,2.894642,2030.9,2030.3,0.0011]
[1772121437291,1.23089376,2031.1,2030.4,4.187946]
[1772121437496,1.23089376,2031.1,2030.3,0.0011]
[1772121437679,1.01066766,2031.1,2030.3,0.0011]
[1772121437887,2.24153854,2031.1,2030.3,0.0011]
[1772121438305,1.01066766,2031.0,2030.3,0.0011]
[1772121438505,1.874769,2030.8,2030.3,0.0011]
[1772121438708,2.894642,2030.8,2030.3,0.0011]
[1772121439500,1.23092665,2031.0,2030.3,0.0011]
[1772121439501,1.2310218,2030.9,2030.3,0.0011]
[1772121439899,2.894642,2030.8,2030.3,0.0011]
[1772121440513,3.90530966,2030.9,2030.3,0.0011]
[1772121440827,2.894642,2030.9,2030.3,2.26120298]
[1772121440986,2.42266144,2031.5,2030.3,2.26120298]
[1772121440987,1.03503856,2031.7,2030.6,13.030109]
[1772121441191,1.03503856,2031.7,2030.7,0.897]
[1772121441384,1.03503856,2031.7,2030.8,8.222295]
[1772121441607,1.03503856,2031.7,2030.8,4.820698]
[1772121441808,1.03503856,2031.7,2030.8,2.26017]
[1772121442318,1.03503856,2031.7,2030.8,2.575132]
[1772121442901,2.26557811,2031.7,2030.9,1.23098133]
[1772121444023,1.03503856,2031.7,2030.9,1.23098133]
[1772121444198,2.26530919,2032.1,2031.0,18.05021352]
[1772121444397,0.001,2031.5,2031.1,7.978504]
[1772121444607,0.001,2031.5,2031.2,0.897]
[1772121444799,1.23011627,2032.4,2031.4,8.124592]
[1772121445003,2.26515483,2032.4,2031.5,1.23061777]
[1772121445413,1.03503856,2032.3,2031.6,0.898]
[1772121446123,2.26583696,2032.9,2031.7,4.29268582]
[1772121446302,0.001,2032.9,2032.1,2.13579437]
[1772121446504,0.001,2032.9,2032.2,0.898]
[1772121446690,0.001,2032.9,2032.3,7.43195]
[1772121446893,0.001,2032.9,2032.4,1.23007282]
[1772121449021,0.001,2032.9,2032.3,4.92029128]
[1772121449324,2.26445976,2033.5,2032.6,10.655709]
[1772121449531,1.03553856,2033.8,2032.8,15.64229837]
[1772121449713,2.26452292,2034.2,2032.9,11.72281]
[1772121449913,1.03553856,2034.1,2032.9,5.33941]
[1772121450115,1.03553856,2034.1,2032.8,0.0407077]
[1772121450425,1.03553856,2034.1,2032.9,7.19778]
[1772121450638,1.03553856,2034.1,2032.8,0.0407077]
[1772121450794,1.03553856,2033.8,2032.7,0.9]
[1772121450998,1.03553856,2033.6,2032.5,1.2300123]
[1772121451234,1.03553856,2033.5,2032.6,0.9]
[1772121452409,1.22928652,2033.7,2032.1,0.03417279]
[1772121452410,1.03553856,2033.2,2032.2,0.9]
[1772121453329,1.03553856,2033.1,2032.2,2.13019127]
[1772121453635,1.03553856,2033.1,2032.2,0.9]
[1772121453828,1.03553856,2033.1,2032.0,1.23026771]
[1772121454004,1.03553856,2033.1,2032.1,0.9]
[1772121455224,1.03553856,2033.1,2032.2,3.36598824]
[1772121455405,2.26503319,2033.4,2032.4,11.555454]
[1772121455613,2.26503319,2033.4,2032.3,3.379033]
[1772121456019,0.001,2032.9,2032.3,3.379033]
[1772121456218,0.001,2032.9,2032.3,10.933456]
[1772121456425,1.22939431,2033.6,2032.4,0.01781503]
[1772121456619,1.22939431,2033.6,2032.5,2.13579437]
[1772121456839,1.03603856,2033.5,2032.6,0.9]
[1772121457209,1.03603856,2033.3,2032.6,2.12995159]
[1772121457610,1.03603856,2033.3,2032.6,0.9]
[1772121457941,1.03603856,2033.3,2032.6,2.12994841]
[1772121458131,1.03603856,2033.3,2032.6,0.9]
[1772121458531,1.03603856,2033.3,2032.6,2.12994347]
[1772121458931,1.03603856,2033.9,2032.7,2.1440427]
[1772121459242,2.26521248,2033.9,2032.8,1.2380791]
[1772121459809,1.03603856,2033.8,2032.8,1.22983077]
[1772121461622,1.22928652,2033.7,2032.8,1.22983077]
[1772121461952,1.22913445,2034.0,2032.8,3.36562514]
[1772121462245,1.03603856,2034.1,2033.1,2.13579437]
[1772121462446,0.001,2034.3,2033.4,2.13579437]
[1772121463047,0.001,2034.6,2033.9,2.13579437]
[1772121463222,0.001,2034.6,2034.0,0.901]
[1772121463620,0.001,2034.8,2034.3,1.22892395]
[1772121464349,0.001,2034.8,2034.0,2.13005948]
[1772121464350,1.03703856,2034.8,2034.0,2.13005948]
[1772121465749,1.03603856,2034.6,2033.8,1.22917588]
[1772121465921,1.03603856,2034.6,2033.6,0.901]
[1772121466829,1.22868236,2034.7,2033.1,2.1306493]
[1772121466830,2.13579437,2034.4,2033.1,2.1306493]
[1772121467355,1.03603856,2034.3,2033.1,2.1306493]
[1772121467725,1.03603856,2034.1,2033.1,2.1306493]
[1772121468659,2.2648417,2034.5,2033.6,2.13579437]
[1772121468848,1.03603856,2034.5,2033.7,0.901]
[1772121469049,0.001,2034.6,2033.7,0.901]
[1772121469267,1.03603856,2034.5,2033.7,0.901]
[1772121469564,1.03603856,2034.5,2033.1,1.2296493]
[1772121469763,2.26502292,2034.2,2033.3,1.22952835]
[1772121470142,1.22888907,2034.4,2033.3,3.36532272]
[1772121470365,2.26488744,2034.5,2033.6,2.13579437]
[1772121470556,2.26488744,2034.5,2033.7,0.901]
[1772121470864,1.03603856,2034.5,2033.7,0.901]
[1772121471832,1.03603856,2034.5,2033.8,1.22922607]
[1772121472034,1.03603856,2035.3,2034.0,2.13579437]
[1772121472236,1.03603856,2035.3,2034.3,2.13579437]
[1772121472470,1.03603856,2035.3,2034.4,0.9]
[1772121473588,1.22826586,2035.4,2034.4,0.9]
[1772121473589,0.001,2035.6,2034.5,2.13579437]
[1772121473739,0.001,2035.6,2035.0,1.22850122]
[1772121473933,0.001,2035.6,2035.1,0.9]
[1772121474550,1.03703856,2035.6,2035.1,0.9]
[1772121474744,1.03603856,2035.5,2034.4,0.9]
[1772121475739,2.2643587,2035.3,2034.4,2.12881376]
[1772121475943,1.03603856,2035.2,2034.4,2.12881376]
[1772121477180,4.91357233,2035.6,2034.4,2.12881376]
[1772121477181,2.26428544,2035.5,2034.5,15.017514]
[1772121477350,1.03603856,2035.5,2034.5,15.017514]
[1772121477546,2.26424172,2035.5,2034.5,2.13579437]
[1772121477747,1.03603856,2035.5,2034.6,1.22874275]
[1772121478067,1.03603856,2035.5,2034.7,13.023544]
[1772121478261,0.001,2035.6,2034.9,3.42995]
[1772121478461,0.001,2035.6,2035.0,0.9]
[1772121478774,1.03603856,2035.5,2035.0,0.9]
[1772121479155,0.001,2036.0,2035.0,0.9]
[1772121479354,0.001,2036.0,2035.5,1.52144371]
[1772121479580,0.001,2036.0,2035.6,0.9]
[1772121479943,0.001,2036.0,2035.7,1.22807879]
[1772121480163,4.91040271,2036.5,2035.7,1.22807879]
[1772121480164,0.96656216,2036.5,2035.7,1.22807879]
[1772121480982,0.96656216,2036.5,2035.3,1.22827819]
[1772121481152,0.96656216,2036.1,2035.5,0.9]
[1772121481476,0.96656216,2035.9,2035.2,0.9]
[1772121481849,2.19470128,2035.6,2035.0,0.9]
[1772121482083,2.19470128,2035.6,2034.7,1.22862243]
[1772121482084,2.19470128,2035.6,2034.9,0.9]
[1772121482277,0.96656216,2035.6,2034.9,0.9]
[1772121482477,1.22811221,2035.7,2034.5,0.9]
[1772121482478,0.96656216,2035.3,2034.5,0.9]
[1772121482984,0.96656216,2035.6,2034.6,2.04532]
[1772121483198,0.96656216,2036.0,2035.0,1.52144371]
[1772121483348,4.91087096,2036.3,2035.2,1.52144371]
[1772121483562,5.87743312,2036.3,2035.1,0.899]
[1772121483797,4.91044711,2036.5,2035.1,0.899]
[1772121483798,1.22759636,2036.5,2035.5,1.52144371]
[1772121483964,1.22759636,2036.5,2035.6,1.22813912]
[1772121485375,0.96656216,2036.4,2035.2,4.91340102]
[1772121485698,0.96656216,2036.1,2035.2,1.2283805]
[1772121486069,1.22789783,2036.0,2035.2,1.2283805]
[1772121486277,0.96656216,2036.9,2035.8,1.52144371]
[1772121486488,0.96656216,2036.9,2036.0,1.52144371]
[1772121486672,1.52144371,2037.3,2036.2,1.52144371]
[1772121486673,0.96656216,2037.3,2036.2,1.52144371]
[1772121486998,4.90873783,2037.2,2036.0,1.52144371]
[1772121487237,0.96656216,2037.3,2036.1,2.470148]
[1772121487389,1.22737828,2036.9,2036.0,4.310398]
[1772121487602,4.90887073,2037.2,2036.0,5.83184171]
[1772121487893,0.96656216,2037.3,2036.0,5.83184171]
[1772121487894,1.22730751,2037.0,2036.1,2.395955]
[1772121488097,4.90925123,2037.0,2036.2,1.22777723]
[1772121488812,5.87581339,2037.0,2036.0,1.22785048]
[1772121488963,1.52144371,2036.9,2035.9,2.12691012]
[1772121489501,1.00373605,2036.6,2035.9,0.899]
[1772121490480,1.22759636,2036.5,2035.9,2.12695148]
[1772121490869,1.22759636,2036.5,2035.9,0.899]
[1772121491385,1.22759636,2036.5,2035.9,2.12695558]
[1772121491893,1.22759636,2036.5,2035.9,2.12695304]
[1772121492093,1.22759636,2036.5,2035.9,0.899]
[1772121492301,2.23133241,2036.5,2035.4,1.52144371]
[1772121492602,1.22783753,2036.1,2035.3,0.0011]
[1772121492963,3.75301729,2036.1,2035.3,0.0011]
[1772121493165,1.00373605,2036.0,2035.3,0.0011]
[1772121493359,1.00373605,2035.8,2035.0,0.0011]
[1772121493592,1.00373605,2035.8,2035.0,1.22959992]
[1772121494059,1.00373605,2035.8,2035.0,0.0011]
[1772121494286,1.00373605,2035.8,2035.0,1.22959991]
[1772121494488,2.40083753,2036.1,2035.0,1.22959991]
[1772121494688,3.40457358,2036.1,2035.0,1.22959991]
[1772121495276,1.00373605,2035.9,2035.0,1.22959991]
[1772121495692,1.00373605,2035.7,2035.0,0.0011]
[1772121496096,2.23157358,2036.1,2035.0,2.53281919]
[1772121496477,2.23157358,2036.1,2035.0,1.01137548]
[1772121496872,2.23157358,2036.1,2035.0,0.0011]
[1772121497279,1.22783753,2036.1,2035.2,1.52144371]
[1772121497494,4.91206816,2036.3,2035.3,1.90927548]
[1772121497495,1.22875842,2036.3,2035.3,1.90927548]
[1772121497708,0.001,2036.3,2035.4,1.52144371]
[1772121498003,1.22873171,2036.3,2035.4,2.53171919]
[1772121498580,1.52144371,2035.9,2035.0,0.0011]
[1772121498780,1.22801846,2035.8,2035.0,0.0011]
[1772121500406,1.173,2036.1,2035.0,1.52254371]
[1772121500722,1.173,2036.1,2035.0,2.42054371]
[1772121500918,1.22789783,2036.0,2035.1,1.22844086]
[1772121501693,6.08459135,2036.1,2035.2,1.52144371]
[1772121501694,1.22785967,2036.1,2035.2,1.52144371]
[1772121501900,1.22785967,2036.1,2035.2,2.53171919]
[1772121502715,1.22781261,2036.2,2035.3,1.01027548]
[1772121503018,0.001,2036.3,2035.4,1.2282598]
[1772121503327,0.001,2036.3,2035.5,0.898]
[1772121503694,1.00373605,2036.2,2035.3,1.22828317]
[1772121503923,2.52517976,2036.1,2035.1,2.12639207]
[1772121504217,1.00373605,2036.1,2035.1,2.12639207]
[1772121504417,1.00373605,2036.1,2035.4,0.0011]
[1772121504601,1.00473605,2036.1,2035.4,0.0011]
[1772121505002,2.23163388,2036.0,2035.4,0.0011]
[1772121505522,1.00373605,2035.9,2035.2,0.0011]
[1772121505693,1.00373605,2035.7,2035.2,0.0011]
[1772121506106,2.52517976,2035.6,2035.0,0.0011]
[1772121506534,1.00373605,2035.6,2035.0,0.0011]
[1772121506937,1.22819945,2035.5,2035.0,0.0011]
[1772121508013,2.2319355,2035.5,2035.0,0.0011]
[1772121508208,2.52517976,2035.3,2034.8,0.0011]
[1772121508407,1.00373605,2035.3,2034.8,0.0011]
[1772121508952,4.91279783,2035.6,2034.8,0.0011]
[1772121510533,4.91239252,2035.7,2034.8,0.0011]
[1772121511512,1.00373605,2035.6,2034.8,0.0011]
[1772121512339,1.00373605,2035.5,2034.8,0.0011]
[1772121513620,1.2282598,2035.4,2034.8,0.0011]
[1772121513820,1.22807879,2035.7,2034.8,1.01137548]
[1772121514142,0.001,2036.3,2034.9,3.686241]
[1772121514143,5.91584168,2036.3,2034.9,3.686241]
[1772121514304,1.22781744,2036.2,2035.3,10.695876]
[1772121514504,1.22781744,2036.2,2035.3,9.241952]
[1772121514705,1.22883814,2036.1,2035.2,2.53171919]
[1772121515137,1.22883814,2036.1,2035.3,2.705124]
[1772121515338,1.22885871,2036.1,2035.3,2.705124]
[1772121515642,0.001,2036.1,2035.3,1.22832014]
[1772121516234,2.52617976,2036.1,2035.0,4.91389084]
[1772121516448,1.00373605,2036.0,2035.0,4.91389084]
[1772121516738,1.00373605,2036.0,2035.0,6.43643455]
[1772121517123,1.00373605,2036.0,2035.0,1.22960122]
[1772121517840,1.22795815,2035.9,2035.0,1.22960122]
[1772121518243,1.22795815,2035.9,2035.0,2.75104493]
[1772121518539,0.001,2036.1,2035.5,1.52144371]
[1772121518741,0.001,2036.1,2035.5,0.894]
[1772121519252,1.22885273,2036.1,2035.5,0.894]
[1772121519554,1.22883774,2036.1,2035.5,0.894]
[1772121519718,0.001,2036.1,2035.5,2.12216974]
[1772121519919,2.45702599,2036.1,2035.2,1.2283805]
[1772121520122,3.62902599,2036.1,2035.1,2.12239785]
[1772121520432,2.10758228,2036.1,2035.1,2.12239785]
[1772121520635,0.93458228,2036.0,2035.1,2.12239785]
[1772121520831,0.93458228,2035.9,2035.1,0.894]
[1772121521145,0.93458228,2035.9,2035.1,2.12243827]
[1772121521348,0.93458228,2035.9,2035.1,0.894]
[1772121521546,2.45602599,2035.6,2035.0,0.0011]
[1772121521715,2.16284208,2035.4,2034.8,0.0011]
[1772121524630,1.2282598,2035.4,2034.8,0.0011]
[1772121525852,4.9130392,2035.5,2034.8,0.0011]
[1772121526457,5.84762148,2035.5,2034.8,0.0011]
[1772121526756,1.22801846,2035.8,2034.8,2.41643191]
[1772121528221,2.16260074,2035.8,2034.8,0.8949882]
[1772121528468,2.16260074,2035.8,2034.8,1.22971847]
[1772121528469,0.93458228,2035.7,2034.8,1.22971847]
[1772121528646,1.22801846,2035.8,2034.8,1.22971847]
[1772121528854,0.001,2036.1,2035.3,0.8938882]
[1772121529066,0.001,2036.1,2035.4,1.52144371]
[1772121529067,1.22885739,2036.1,2035.4,1.52144371]
[1772121529362,1.22885739,2036.1,2035.3,1.7858882]
[1772121529726,0.001,2036.1,2035.3,1.7858882]
[1772121529932,1.22884222,2036.1,2035.3,1.7858882]
[1772121530337,0.001,2036.1,2035.4,1.2282598]
[1772121530542,0.001,2036.1,2035.5,0.8938882]
[1772121531779,0.001,2036.1,2035.4,1.2282598]
[1772121531941,0.001,2036.1,2035.3,0.892]
[1772121532146,0.001,2036.1,2035.3,2.12031436]
[1772121532658,1.22883753,2036.1,2035.3,2.12031436]
[1772121534161,1.22883753,2036.1,2035.5,2.41533191]
[1772121534162,0.001,2036.1,2035.5,2.41533191]
[1772121534357,0.001,2036.1,2035.6,0.8938882]
[1772121534558,0.001,2036.1,2035.7,1.22807879]
[1772121534861,0.001,2036.1,2035.6,2.12197802]
[1772121535066,0.001,2036.1,2035.6,0.8938882]
[1772121535366,0.001,2036.1,2035.4,1.22821859]
[1772121536436,0.001,2036.1,2035.3,2.12027247]
[1772121538284,0.001,2036.1,2035.3,2.12031899]
[1772121539642,0.001,2036.1,2035.4,2.41533191]
[1772121540383,1.22768297,2036.4,2035.5,0.8938882]
[1772121540564,2.69044371,2036.8,2035.5,0.8938882]